[Event "Vienna Championship-B 2022"]
[Site "Vienna"]
[Date "2022.09.24"]
[Round "8.12"]
[White "Kunschek, Horst"]
[Black "Pantelic, Slobodan"]
[Result "1/2-1/2"]
[ECO "B44"]
[WhiteElo "1743"]
[BlackElo "1596"]
[Annotator "NA RC COMBH"]
[PlyCount "146"]
[EventDate "2022.09.17"]
[EventType "swiss"]
[EventCountry "AUT"]
[SourceTitle "playchess.com"]
[Source "ChessBase"]
[SourceQuality "1"]
[TimeControl "5400+30"]

1. e4 {[%emt 0:02:18]} c5 {[%emt 0:15:51]} 2. Nf3 {[%emt 0:00:09]} Nc6 {[%emt 0:00:15]} 3. d4 {[%emt 0:00:06]} cxd4 {[%emt 0:00:03]} 4. Nxd4 {[%emt 0:00:10]} e6 {[%emt 0:00:02]} 5. Nxc6 {[%emt 0:00:14]} bxc6 {[%emt 0:00:26]} 6. Be2 {[%emt 0:00:11]} d5 {[%emt 0:00:05]} 7. exd5 {[%emt 0:00:16]} cxd5 {[%emt 0:00:01]} 8. O-O {[%emt 0:00:25]} Nf6 {[%emt 0:00:01]} 9. Bf3 {[%emt 0:00:23]} Ba6 {[%emt 0:00:30]} 10. Re1 {[%emt 0:00:34]} Be7 {[%emt 0:00:04]} 11. h3 {[%emt 0:00:16]} O-O {[%emt 0:00:03]} 12. b3 {[%emt 0:00:23]} Qc7 {[%emt 0:00:05]} 13. Bb2 {[%emt 0:00:31]} Rac8 {[%emt 0:00:02]} 14. c3 {[%emt 0:01:32]} Bb7 {[%emt 0:00:23]} 15. Nd2 {[%emt 0:00:19]} Rfd8 {[%emt 0:00:24]} 16. Rc1 {[%emt 0:00:16]} Ne4 {[%emt 0:00:14]} 17. Qe2 {[%emt 0:00:20]} Nxd2 {[%emt 0:00:04]} 18. Qxd2 {[%emt 0:00:26]} Qa5 {[%emt 0:00:29]} 19. Ba1 {[%emt 0:00:50]} Bf6 {[%emt 0:00:14]} 20. b4 {[%emt 0:00:47]} Qb6 {[%emt 0:00:11]} 21. Qe3 {[%emt 0:02:15]} Qa6 {[%emt 0:00:24]} 22. Qe2 {[%emt 0:00:28]} Rc4 {[%emt 0:00:22]} 23. Qb2 {[%emt 0:01:17]} Qb6 {[%emt 0:00:38]} 24. a3 {[%emt 0:00:24]} Rdc8 {[%emt 0:00:14]} 25. Qd2 {[%emt 0:00:29]} h6 {[%emt 0:00:06]} 26. Be2 {[%emt 0:01:18]} R4c7 {[%emt 0:00:11]} 27. Qe3 {[%emt 0:01:20]} Qc6 {[%emt 0:00:38]} 28. Qg3 {[%emt 0:02:09]} Ba6 {[%emt 0:00:18]} 29. Bxa6 {[%emt 0:01:43]} Qxa6 {[%emt 0:00:02]} 30. Bb2 {[%emt 0:00:15]} Rc4 {[%emt 0:00:06]} 31. f4 {[%emt 0:01:27]} Qb6+ {[%emt 0:00:10]} 32. Kh1 {[%emt 0:01:00]} Qc7 {[%emt 0:00:08]} 33. Rf1 {[%emt 0:00:28]} a6 {[%emt 0:00:14]} 34. Qf3 {[%emt 0:01:58]} Qc6 {[%emt 0:00:25]} 35. Rfd1 {[%emt 0:00:51]} Qc7 {[%emt 0:00:55]} 36. f5 {[%emt 0:00:35]} Rf4 {[%emt 0:00:06]} 37. Qe2 {[%emt 1:20:37]} Rxf5 {[%emt 1:24:36]} 38. c4 {[%emt 0:00:00]} dxc4 {[%emt 0:00:00]} 39. Bxf6 {[%emt 0:00:00]} Rxf6 {[%emt 0:00:00]} 40. Rc3 {[%emt 0:00:00]} Rf4 {[%emt 0:00:00]} 41. Rdc1 {[%emt 0:00:00]} Qc6 {[%emt 0:00:00]} 42. Qd2 {[%emt 0:00:00]} Re4 {[%emt 0:00:00]} 43. Qc2 {[%emt 0:00:00]} Rd4 {[%emt 0:00:00]} 44. Qf2 {[%emt 0:00:00]} Qd5 {[%emt 0:00:00]} 45. Kh2 {[%emt 0:00:00]} h5 {[%emt 0:00:00]} 46. Qf3 {[%emt 0:00:00]} h4 {[%emt 0:00:00]} 47. Qxd5 {[%emt 0:00:00]} exd5 {[%emt 0:00:00]} 48. R1c2 {[%emt 0:00:00]} Re8 {[%emt 0:00:00]} 49. Kg1 {[%emt 0:00:00]} Rd3 {[%emt 0:00:00]} 50. Rxd3 {[%emt 0:00:00]} cxd3 {[%emt 0:00:00]} 51. Rd2 {[%emt 0:00:00]} Re3 {[%emt 0:00:00]} 52. Kf2 {[%emt 0:00:00]} Rg3 {[%emt 0:00:00]} 53. a4 {[%emt 0:00:00]} Kf8 {[%emt 0:00:00]} 54. b5 {[%emt 0:00:00]} axb5 {[%emt 0:00:00]} 55. axb5 {[%emt 0:00:00]} Rg6 {[%emt 0:00:00]} 56. Rxd3 {[%emt 0:00:00]} Rd6 {[%emt 0:00:00]} 57. Ke3 {[%emt 0:00:00]} Ke7 {[%emt 0:00:00]} 58. Kd4 {[%emt 0:00:00]} Kd7 {[%emt 0:00:00]} 59. Rc3 {[%emt 0:00:00]} Ke6 {[%emt 0:00:00]} 60. Re3+ {[%emt 0:00:00]} Kd7 {[%emt 0:00:00]} 61. Rc3 {[%emt 0:00:00]} g5 {[%emt 0:00:00]} 62. Kc5 {[%emt 0:00:00]} d4 {[%emt 0:00:00]} 63. Rd3 {[%emt 0:00:00]} f5 {[%emt 0:00:00]} 64. Rxd4 {[%emt 0:00:00]} Rxd4 {[%emt 0:00:00]} 65. Kxd4 {[%emt 0:00:00]} Kd6 {[%emt 0:00:00]} 66. b6 {[%emt 0:00:00]} g4 {[%emt 0:00:00]} 67. b7 {[%emt 0:00:00]} Kc7 {[%emt 0:00:00]} 68. Ke5 {[%emt 0:00:00]} gxh3 {[%emt 0:00:00]} 69. gxh3 {[%emt 0:00:00]} Kxb7 {[%emt 0:16:00]} 70. Kxf5 Kc7 71. Kg5 {[%emt 0:17:00]} Kd7 72. Kxh4 {[%emt 0:00:30]} Ke7 73. Kg5 Kf7 {[%emt 0:00:00]} 1/2-1/2